[Event "SVK ECo-C Extraliga 2018-19"]
[Site "Slovakia"]
[Date "2019.03.09"]
[Round "7.1"]
[White "Cvek, Robert"]
[Black "Leniart, Arkadiusz"]
[Result "1-0"]
[ECO "D94"]
[WhiteElo "2512"]
[BlackElo "2498"]
[Annotator "ChessBase"]
[PlyCount "117"]
[EventDate "2018.11.10"]
[EventType "team-tourn"]
[EventCountry "SVK"]
[SourceTitle "playchess.com"]
[Source "ChessBase"]
[SourceQuality "1"]
[WhiteTeam "Osuske"]
[BlackTeam "Prakovce"]
[TimeControl "40/5400+30:1800+30"]

1. Nf3 {[%emt 0:00:00]} d5 {[%emt 0:00:00]} 2. e3 {[%emt 0:00:00]} Nf6 {[%emt 0:01:27]} 3. c4 {[%emt 0:00:13]} c6 {[%emt 0:02:25]} 4. Nc3 {[%emt 0:00:44]} g6 {[%emt 0:01:44]} 5. d4 {[%emt 0:00:47]} Bg7 {[%emt 0:00:34]} 6. Be2 {[%emt 0:00:16]} O-O {[%emt 0:00:40]} 7. O-O {[%emt 0:00:09]} Bg4 {[%emt 0:05:02]} 8. Qb3 {[%emt 0:05:48]} Qb6 {[%emt 0:02:27]} 9. cxd5 {[%emt 0:04:08]} Qxb3 {[%emt 0:01:04]} 10. axb3 {[%emt 0:00:07]} Nxd5 {[%emt 0:01:50]} 11. Nxd5 {[%emt 0:01:27]} cxd5 {[%emt 0:00:07]} 12. h3 {[%emt 0:00:37]} Bxf3 {[%emt 0:10:16]} 13. Bxf3 {[%emt 0:00:40]} Rd8 {[%emt 0:01:25]} 14. b4 {[%emt 0:06:34]} e5 {[%emt 0:32:53]} 15. b5 {[%emt 0:00:18]} e4 {[%emt 0:03:33]} 16. Bd1 {[%emt 0:02:03]} Nd7 {[%emt 0:03:11]} 17. Bb3 {[%emt 0:00:16]} Nf6 {[%emt 0:02:22]} 18. Bd2 {[%emt 0:01:25]} b6 {[%emt 0:02:04]} 19. Rfc1 {[%emt 0:01:45]} Rd7 {[%emt 0:00:31]} 20. Rc6 {[%emt 0:01:24]} Rad8 {[%emt 0:00:09]} 21. Rac1 {[%emt 0:04:25]} Ne8 {[%emt 0:01:14]} 22. Rc8 {[%emt 0:04:26]} Bf8 {[%emt 0:01:31]} 23. Be1 {[%emt 0:04:24]} Kg7 {[%emt 0:02:26]} 24. R8c6 {[%emt 0:06:39]} Be7 {[%emt 0:04:37]} 25. Kf1 {[%emt 0:00:22]} Rb7 {[%emt 0:02:04]} 26. Ke2 {[%emt 0:00:36]} Rbd7 {[%emt 0:02:51]} 27. Rc8 {[%emt 0:04:03]} f5 {[%emt 0:06:08]} 28. Rxd8 {[%emt 0:01:28]} Rxd8 {[%emt 0:01:29]} 29. f3 {[%emt 0:00:29]} exf3+ {[%emt 0:03:21]} 30. gxf3 {[%emt 0:01:24]} Rd7 {[%emt 0:00:53]} 31. Rc8 {[%emt 0:05:47]} Nc7 {[%emt 0:00:45]} 32. Bg3 {[%emt 0:03:18]} Ne6 {[%emt 0:02:31]} 33. Rc6 {[%emt 0:04:46]} Kf7 {[%emt 0:00:17]} 34. Kd3 {[%emt 0:16:03]} f4 {[%emt 0:00:58]} 35. Bxf4 {[%emt 0:04:17]} Nxf4+ {[%emt 0:00:05]} 36. exf4 {[%emt 0:00:09]} Bd8 {[%emt 0:00:52]} 37. Kc3 {[%emt 0:09:35]} Ke7 {[%emt 0:00:48]} 38. f5 {[%emt 0:00:24]} Rd6 {[%emt 0:01:04]} 39. fxg6 {[%emt 0:01:16]} hxg6 {[%emt 0:00:07]} 40. Rc8 {[%emt 0:01:06]} g5 {[%emt 0:01:08]} 41. Kd3 {[%emt 0:32:46]} Ke6 {[%emt 0:07:04]} 42. Ke3 {[%emt 0:00:00]} Rd7 {[%emt 0:00:37]} 43. Bc2 {[%emt 0:00:00]} Bc7 {[%emt 0:04:40]} 44. Bg6 {[%emt 0:00:00]} Bf4+ {[%emt 0:03:49]} 45. Kd3 {[%emt 0:00:00]} Rc7 {[%emt 0:02:04]} 46. Rd8 {[%emt 0:00:00]} Rc4 {[%emt 0:08:46]} 47. Bh5 {[%emt 0:00:00]} Rb4 {[%emt 0:00:29]} 48. Bg4+ {[%emt 0:00:00]} Ke7 {[%emt 0:02:08]} 49. Rxd5 {[%emt 0:00:00]} Rxb2 {[%emt 0:00:08]} 50. Ke4 {[%emt 0:00:00]} Bd2 {[%emt 0:00:53]} 51. Kf5 {[%emt 0:00:00]} Rb4 {[%emt 0:02:10]} 52. Kg6 {[%emt 0:00:00]} Ke8 {[%emt 0:00:35]} 53. Bd7+ {[%emt 0:00:00]} Ke7 {[%emt 0:00:25]} 54. Bc6 {[%emt 0:00:00]} Ke6 {[%emt 0:00:40]} 55. Rd8 {[%emt 0:00:00]} Bc3 {[%emt 0:01:59]} 56. d5+ {[%emt 0:00:00]} Ke5 {[%emt 0:00:55]} 57. d6 {[%emt 0:00:01]} Rf4 {[%emt 0:00:48]} 58. d7 {[%emt 0:00:59]} Rf6+ {[%emt 0:00:07]} 59. Kh5 {[%emt 0:00:48] Kd5 [%emt 00:00:43]} 1-0

[Event "SVK ECo-C Extraliga 2018-19"]
[Site "Slovakia"]
[Date "2019.03.09"]
[Round "7.1"]
[White "Pechac, Jergus"]
[Black "Aczel, Gergely"]
[Result "0-1"]
[ECO "E10"]
[WhiteElo "2470"]
[BlackElo "2542"]
[Annotator "ChessBase"]
[PlyCount "82"]
[EventDate "2018.11.10"]
[EventType "team-tourn"]
[EventCountry "SVK"]
[SourceTitle "playchess.com"]
[Source "ChessBase"]
[SourceQuality "1"]
[WhiteTeam "Zilina"]
[BlackTeam "Podhajska"]
[TimeControl "40/5400+30:1800+30"]

1. d4 {[%emt 0:00:00]} Nf6 {[%emt 0:00:00]} 2. c4 {[%emt 0:00:00]} e6 {[%emt 0:00:00]} 3. Nf3 {[%emt 0:00:00]} d5 {[%emt 0:00:00]} 4. g3 {[%emt 0:00:00]} Nbd7 {[%emt 0:00:00]} 5. Nbd2 {[%emt 0:00:02]} Be7 {[%emt 0:00:05]} 6. Bg2 {[%emt 0:00:07]} O-O {[%emt 0:00:07]} 7. O-O {[%emt 0:00:03]} b6 {[%emt 0:00:12]} 8. b3 {[%emt 0:00:36]} Bb7 {[%emt 0:00:33]} 9. Bb2 {[%emt 0:00:09]} c5 {[%emt 0:00:22]} 10. cxd5 {[%emt 0:00:45]} exd5 {[%emt 0:03:57]} 11. Nh4 {[%emt 0:00:18]} Re8 {[%emt 0:00:54]} 12. Nf5 {[%emt 0:05:01]} Bf8 {[%emt 0:00:32]} 13. Nc4 {[%emt 0:01:25]} Qc7 {[%emt 0:29:40]} 14. Nce3 {[%emt 0:03:39]} g6 {[%emt 0:02:32]} 15. Nh4 {[%emt 0:04:39]} Rad8 {[%emt 0:09:13]} 16. Qd2 {[%emt 0:16:36]} Ne4 {[%emt 0:20:23]} 17. Bxe4 {[%emt 0:20:41]} Rxe4 {[%emt 0:00:02]} 18. dxc5 {[%emt 0:00:37]} d4 {[%emt 0:14:39]} 19. Nc4 {[%emt 0:27:12]} bxc5 {[%emt 0:01:19]} 20. f3 {[%emt 0:00:14]} Re6 {[%emt 0:00:39]} 21. e4 {[%emt 0:00:37]} Nb6 {[%emt 0:02:49]} 22. Na5 {[%emt 0:01:43]} Ba6 {[%emt 0:02:21]} 23. Rfe1 {[%emt 0:02:05]} c4 {[%emt 0:05:08]} 24. bxc4 {[%emt 0:00:09]} Nxc4 {[%emt 0:00:02]} 25. Nxc4 {[%emt 0:00:08]} Qxc4 {[%emt 0:00:05]} 26. Nf5 {[%emt 0:02:00]} Qb4 {[%emt 0:03:02]} 27. Nh6+ {[%emt 0:08:44]} Kg7 {[%emt 0:00:06]} 28. Qg5 {[%emt 0:00:04]} f6 {[%emt 0:00:28]} 29. Qg4 {[%emt 0:00:04]} Qxb2 {[%emt 0:02:24]} 30. Qxe6 {[%emt 0:01:59]} Bc8 {[%emt 0:00:45]} 31. Qf7+ {[%emt 0:05:06]} Kxh6 {[%emt 0:00:01]} 32. Rab1 {[%emt 0:00:17]} Qa3 {[%emt 0:00:59]} 33. Qxf6 {[%emt 0:00:57]} Be7 {[%emt 0:00:26]} 34. Qf4+ {[%emt 0:00:31]} Bg5 {[%emt 0:00:18]} 35. Qf7 {[%emt 0:00:30]} Rf8 {[%emt 0:00:40]} 36. Rb3 {[%emt 0:00:13]} Be3+ {[%emt 0:01:42]} 37. Kh1 {[%emt 0:00:48]} Rxf7 {[%emt 0:00:20]} 38. Rxa3 {[%emt 0:00:10]} Rxf3 {[%emt 0:00:10]} 39. Rxa7 {[%emt 0:00:15]} Rf2 {[%emt 0:01:37]} 40. Ra3 {[%emt 0:00:24]} Bh3 {[%emt 0:00:18]} 41. Rexe3 {[%emt 0:30:09]} Rf1# 0-1

[Event "SVK ECo-C Extraliga 2018-19"]
[Site "Slovakia"]
[Date "2019.03.09"]
[Round "7.1"]
[White "Neuman, Petr"]
[Black "Sipos, Istvan"]
[Result "1/2-1/2"]
[ECO "A14"]
[WhiteElo "2401"]
[BlackElo "2492"]
[Annotator "RC"]
[PlyCount "41"]
[EventDate "2018.11.10"]
[EventType "team-tourn"]
[EventCountry "SVK"]
[SourceTitle "playchess.com"]
[Source "ChessBase"]
[SourceQuality "1"]
[WhiteTeam "Liptovska"]
[BlackTeam "Komarno"]
[TimeControl "40/5400+30:1800+30"]

1. c4 {[%emt 0:00:00]} e6 {[%emt 0:01:34]} 2. g3 {[%emt 0:00:00]} d5 {[%emt 0:00:25]} 3. Bg2 {[%emt 0:00:01]} Nf6 {[%emt 0:00:58]} 4. Nf3 {[%emt 0:00:14]} Be7 {[%emt 0:00:13]} 5. O-O {[%emt 0:00:09]} O-O {[%emt 0:00:03]} 6. d4 {[%emt 0:00:56]} dxc4 {[%emt 0:01:28]} 7. Qc2 {[%emt 0:01:19]} b6 {[%emt 0:05:49]} 8. Qxc4 {[%emt 0:05:32]} Bb7 {[%emt 0:00:09]} 9. Nc3 {[%emt 0:01:09]} c5 {[%emt 0:06:52]} 10. dxc5 {[%emt 0:06:45]} Qc8 {[%emt 0:03:44]} 11. b3 {[%emt 0:11:50]} Qxc5 {[%emt 0:03:35]} 12. Qxc5 {[%emt 0:00:37]} Bxc5 {[%emt 0:00:13]} 13. Bb2 {[%emt 0:00:26]} Nbd7 {[%emt 0:03:08]} 14. Rfd1 {[%emt 0:05:04]} Rfd8 {[%emt 0:05:59]} 15. Ne5 {[%emt 0:12:00]} Bxg2 {[%emt 0:02:56]} 16. Nxd7 {[%emt 0:01:27]} Rxd7 {[%emt 0:12:02]} 17. Rxd7 {[%emt 0:00:23]} Nxd7 {[%emt 0:00:06]} 18. Kxg2 {[%emt 0:00:04]} Be7 {[%emt 0:12:25]} 19. Rc1 {[%emt 0:02:14]} Rc8 {[%emt 0:08:13]} 20. Nb5 {[%emt 0:04:30]} Rxc1 {[%emt 0:00:45]} 21. Bxc1 {[%emt 0:00:30]} 1/2-1/2

[Event "SVK ECo-C Extraliga 2018-19"]
[Site "Slovakia"]
[Date "2019.03.09"]
[Round "7.2"]
[White "Markos, Jan"]
[Black "Balogh, Csaba"]
[Result "1-0"]
[ECO "A07"]
[WhiteElo "2551"]
[BlackElo "2628"]
[Annotator "ChessBase"]
[PlyCount "80"]
[EventDate "2018.11.10"]
[EventType "team-tourn"]
[EventCountry "SVK"]
[SourceTitle "playchess.com"]
[Source "ChessBase"]
[SourceQuality "1"]
[WhiteTeam "Snina"]
[BlackTeam "Modra"]
[TimeControl "40/5400+30:1800+30"]

1. Nf3 {[%emt 0:00:00]} d5 {[%emt 0:00:00]} 2. g3 {[%emt 0:00:00]} c6 {[%emt 0:00:51]} 3. Bg2 {[%emt 0:00:00]} Bg4 {[%emt 0:00:10]} 4. O-O {[%emt 0:00:00]} Nf6 {[%emt 0:02:23]} 5. d4 e6 {[%emt 0:00:30]} 6. Nbd2 {[%emt 0:02:26]} h6 {[%emt 0:07:21]} 7. b3 {[%emt 0:08:25]} Be7 {[%emt 0:01:57]} 8. Bb2 {[%emt 0:00:09]} O-O {[%emt 0:00:31]} 9. Ne5 {[%emt 0:08:28]} Bf5 {[%emt 0:00:31]} 10. f3 {[%emt 0:09:51]} c5 {[%emt 0:05:31]} 11. e4 {[%emt 0:00:50]} Bh7 {[%emt 0:00:13]} 12. dxc5 {[%emt 0:03:36]} Bxc5+ {[%emt 0:03:29]} 13. Kh1 {[%emt 0:01:43]} Nc6 {[%emt 0:06:32]} 14. Nxc6 {[%emt 0:01:15]} bxc6 {[%emt 0:00:04]} 15. Qe2 {[%emt 0:01:03]} a5 {[%emt 0:00:33]} 16. a4 {[%emt 0:08:44]} Re8 {[%emt 0:04:53]} 17. f4 {[%emt 0:03:26]} Bb4 {[%emt 0:02:25]} 18. e5 {[%emt 0:03:01]} Nd7 {[%emt 0:00:06]} 19. Nf3 {[%emt 0:03:46]} Qb6 {[%emt 0:03:11]} 20. Nd4 {[%emt 0:03:10]} Qa6 {[%emt 0:13:52]} 21. Rf2 {[%emt 0:15:02]} Qxe2 {[%emt 0:06:49]} 22. Rxe2 {[%emt 0:00:04]} Rac8 {[%emt 0:00:08]} 23. g4 {[%emt 0:12:50]} c5 {[%emt 0:16:12]} 24. Nb5 {[%emt 0:00:10]} c4 {[%emt 0:00:05]} 25. Nd6 {[%emt 0:00:07]} Bxd6 {[%emt 0:01:23]} 26. exd6 {[%emt 0:00:04]} Red8 {[%emt 0:03:49]} 27. f5 {[%emt 0:04:38]} c3 {[%emt 0:08:22]} 28. Ba3 {[%emt 0:00:09]} Nf6 {[%emt 0:07:51]} 29. Rae1 {[%emt 0:02:18]} d4 {[%emt 0:03:00]} 30. Rd1 {[%emt 0:00:40]} e5 {[%emt 0:01:07]} 31. Rxe5 {[%emt 0:00:29]} Nxg4 {[%emt 0:00:04]} 32. Re2 {[%emt 0:00:07]} Bxf5 {[%emt 0:01:29]} 33. Rxd4 {[%emt 0:00:07]} Re8 {[%emt 0:00:35]} 34. Re7 {[%emt 0:06:13]} Nf6 35. Bb7 {[%emt 0:00:30]} Rcd8 {[%emt 0:00:33]} 36. Rc4 {[%emt 0:00:45]} Bh3 {[%emt 0:00:57]} 37. Kg1 {[%emt 0:00:24]} Ng4 38. Rxe8+ {[%emt 0:02:14]} Rxe8 {[%emt 0:00:32]} 39. Rc8 {[%emt 0:00:22]} Nf6 40. Rxe8+ {[%emt 0:00:30]} Nxe8 {[%emt 0:01:17]} 1-0

[Event "SVK ECo-C Extraliga 2018-19"]
[Site "Slovakia"]
[Date "2019.03.09"]
[Round "7.2"]
[White "Vajda, Levente"]
[Black "Roubalik, Jakub"]
[Result "1/2-1/2"]
[ECO "A06"]
[WhiteElo "2551"]
[BlackElo "2410"]
[Annotator "ChessBase"]
[PlyCount "93"]
[EventDate "2018.11.10"]
[EventType "team-tourn"]
[EventCountry "SVK"]
[SourceTitle "playchess.com"]
[Source "ChessBase"]
[SourceQuality "1"]
[WhiteTeam "Streda"]
[BlackTeam "Dubnica"]
[TimeControl "40/5400+30:1800+30"]

1. Nf3 {[%emt 0:00:00]} d5 {[%emt 0:00:00]} 2. g3 {[%emt 0:00:00]} Nf6 {[%emt 0:00:07]} 3. Bg2 {[%emt 0:00:00]} e6 {[%emt 0:00:52]} 4. O-O {[%emt 0:00:00]} Be7 {[%emt 0:00:06]} 5. c4 {[%emt 0:00:00]} O-O {[%emt 0:00:23]} 6. d4 {[%emt 0:00:02]} dxc4 {[%emt 0:00:58]} 7. Qc2 {[%emt 0:00:14]} a6 {[%emt 0:02:20]} 8. a4 {[%emt 0:03:13]} Nc6 {[%emt 0:04:21]} 9. Rd1 {[%emt 0:15:00]} Nb4 {[%emt 0:13:17]} 10. Qxc4 {[%emt 0:00:31]} b5 {[%emt 0:00:25]} 11. Qb3 {[%emt 0:00:08]} Bb7 {[%emt 0:01:41]} 12. Nc3 {[%emt 0:00:09]} h6 {[%emt 0:07:38]} 13. Ne5 {[%emt 0:03:59]} Bxg2 {[%emt 0:00:52]} 14. Kxg2 {[%emt 0:00:05]} Qc8 {[%emt 0:02:34]} 15. f3 {[%emt 0:01:47]} Qb7 {[%emt 0:04:29]} 16. Be3 {[%emt 0:03:52]} Nbd5 {[%emt 0:12:26]} 17. Bf2 {[%emt 0:00:50]} Nxc3 {[%emt 0:01:24]} 18. Qxc3 {[%emt 0:01:36]} Nd5 {[%emt 0:09:13]} 19. Qc6 {[%emt 0:03:27]} Rfb8 {[%emt 0:01:28]} 20. a5 {[%emt 0:13:14]} Nb4 {[%emt 0:09:50]} 21. Qxb7 {[%emt 0:03:07]} Rxb7 {[%emt 0:00:13]} 22. Rdc1 {[%emt 0:00:37]} f6 {[%emt 0:08:18]} 23. Nc6 {[%emt 0:02:06]} Nxc6 {[%emt 0:00:45]} 24. Rxc6 {[%emt 0:00:05]} Kf7 {[%emt 0:00:08]} 25. g4 {[%emt 0:03:01]} Bd6 {[%emt 0:02:11]} 26. Bg3 {[%emt 0:00:05]} e5 {[%emt 0:01:47]} 27. d5 {[%emt 0:01:28]} b4 {[%emt 0:00:50]} 28. b3 {[%emt 0:00:17]} Rb5 {[%emt 0:02:23]} 29. e4 {[%emt 0:00:07]} Ke7 {[%emt 0:01:53]} 30. Kf1 {[%emt 0:01:25]} Kd7 {[%emt 0:02:41]} 31. h4 {[%emt 0:04:25]} g6 {[%emt 0:04:22]} 32. h5 {[%emt 0:00:58]} gxh5 {[%emt 0:01:08]} 33. gxh5 {[%emt 0:00:05]} Kc8 {[%emt 0:00:04]} 34. Bf2 {[%emt 0:00:54]} Kb7 {[%emt 0:00:33]} 35. Be3 {[%emt 0:02:01]} f5 {[%emt 0:00:22]} 36. Rc2 {[%emt 0:00:50]} Rf8 {[%emt 0:01:34]} 37. Kg2 {[%emt 0:03:49]} Rg8+ {[%emt 0:00:37]} 38. Kh3 {[%emt 0:00:12]} f4 {[%emt 0:01:33]} 39. Bf2 {[%emt 0:01:08]} Rg5 {[%emt 0:00:11]} 40. Bh4 {[%emt 0:00:15]} Rg7 {[%emt 0:01:57]} 41. Rc6 {[%emt 0:32:32]} Rg8 {[%emt 0:02:51]} 42. Kh2 {[%emt 0:00:00]} Rg7 {[%emt 0:01:20]} 43. Ra4 {[%emt 0:00:00]} Rg8 {[%emt 0:02:01]} 44. Rc4 {[%emt 0:00:00]} Kc8 {[%emt 0:03:57]} 45. Rc2 {[%emt 0:00:00]} Rg7 {[%emt 0:05:39]} 46. Rc6 {[%emt 0:00:00]} Kb7 {[%emt 0:00:12]} 47. Rc2 {[%emt 0:00:00]} 1/2-1/2

[Event "SVK ECo-C Extraliga 2018-19"]
[Site "Slovakia"]
[Date "2019.03.09"]
[Round "7.2"]
[White "Gazik, Viktor"]
[Black "Petrik, Tomas"]
[Result "0-1"]
[ECO "A00"]
[WhiteElo "2513"]
[BlackElo "2466"]
[Annotator "ChessBase"]
[PlyCount "61"]
[EventDate "2018.11.10"]
[EventType "team-tourn"]
[EventCountry "SVK"]
[SourceTitle "playchess.com"]
[Source "ChessBase"]
[SourceQuality "1"]
[WhiteTeam "Podhajska"]
[BlackTeam "Zilina"]
[TimeControl "40/5400+30:1800+30"]

1. g3 {[%emt 0:06:10]} d5 {[%emt 0:02:23]} 2. Bg2 {[%emt 0:00:07]} c6 {[%emt 0:00:41]} 3. Nf3 {[%emt 0:01:35]} Bg4 {[%emt 0:01:16]} 4. c4 {[%emt 0:07:13]} e6 {[%emt 0:06:51]} 5. O-O {[%emt 0:02:46]} Nf6 {[%emt 0:12:37]} 6. cxd5 {[%emt 0:10:40]} Bxf3 {[%emt 0:10:37]} 7. Bxf3 {[%emt 0:01:25]} cxd5 {[%emt 0:00:07]} 8. a3 {[%emt 0:13:28]} Nc6 {[%emt 0:03:32]} 9. Nc3 {[%emt 0:00:21]} Bc5 {[%emt 0:15:50]} 10. e3 {[%emt 0:09:29]} O-O {[%emt 0:05:36]} 11. Bg2 {[%emt 0:05:07]} Rc8 {[%emt 0:03:22]} 12. b4 {[%emt 0:00:59]} Be7 {[%emt 0:02:02]} 13. Bb2 {[%emt 0:00:17]} Ne8 {[%emt 0:08:47]} 14. Qb3 {[%emt 0:10:50]} Nd6 {[%emt 0:01:40]} 15. d3 {[%emt 0:00:03]} Bf6 {[%emt 0:02:33]} 16. Rac1 {[%emt 0:03:06]} a6 {[%emt 0:04:17]} 17. Na4 {[%emt 0:03:48]} Bxb2 {[%emt 0:04:09]} 18. Qxb2 {[%emt 0:00:04]} Na7 {[%emt 0:07:52]} 19. Rxc8 {[%emt 0:10:36]} Qxc8 {[%emt 0:00:33]} 20. Rc1 {[%emt 0:00:05]} Qd7 {[%emt 0:00:18]} 21. Nc5 {[%emt 0:01:39]} Qe7 {[%emt 0:00:16]} 22. a4 {[%emt 0:06:21]} Rc8 {[%emt 0:01:25]} 23. h4 {[%emt 0:01:53]} h6 {[%emt 0:00:06]} 24. Kh2 {[%emt 0:00:31]} Ne8 {[%emt 0:02:32]} 25. Bh3 {[%emt 0:01:01]} a5 {[%emt 0:01:12]} 26. Rb1 {[%emt 0:02:37]} Nc6 {[%emt 0:01:35]} 27. b5 {[%emt 0:00:48]} Nb4 {[%emt 0:00:39]} 28. d4 {[%emt 0:00:27]} b6 {[%emt 0:00:24]} 29. Na6 {[%emt 0:00:22]} Rc2 {[%emt 0:00:04]} 30. Qa3 {[%emt 0:00:39]} Qf6 {[%emt 0:01:12]} 31. Bg2 {[%emt 0:00:00]} 0-1

[Event "SVK ECo-C Extraliga 2018-19"]
[Site "Slovakia"]
[Date "2019.03.09"]
[Round "7.2"]
[White "Jakab, Bela"]
[Black "Hrabusa, Matej"]
[Result "0-1"]
[ECO "C16"]
[WhiteElo "2320"]
[BlackElo "2405"]
[Annotator "NA"]
[PlyCount "102"]
[EventDate "2018.11.10"]
[EventType "team-tourn"]
[EventCountry "SVK"]
[SourceTitle "playchess.com"]
[Source "ChessBase"]
[SourceQuality "1"]
[WhiteTeam "Komarno"]
[BlackTeam "Liptovska"]
[TimeControl "40/5400+30:1800+30"]

1. e4 {[%emt 0:00:00]} e6 {[%emt 0:00:00]} 2. d4 {[%emt 0:00:00]} d5 {[%emt 0:00:00]} 3. Nc3 {[%emt 0:00:00]} Bb4 {[%emt 0:00:00]} 4. e5 {[%emt 0:00:00]} b6 {[%emt 0:00:16]} 5. a3 {[%emt 0:01:05]} Bf8 {[%emt 0:00:35]} 6. f4 {[%emt 0:02:17]} Ne7 {[%emt 0:01:25]} 7. Be3 {[%emt 0:01:34]} Qd7 {[%emt 0:01:58]} 8. Nf3 {[%emt 0:05:50]} h5 {[%emt 0:01:32]} 9. b4 {[%emt 0:04:48]} Nf5 {[%emt 0:07:46]} 10. Bf2 {[%emt 0:01:17]} c6 {[%emt 0:03:16]} 11. Bd3 {[%emt 0:06:01]} Ba6 {[%emt 0:02:08]} 12. O-O {[%emt 0:04:12]} Be7 {[%emt 0:07:20]} 13. Ne2 {[%emt 0:08:58]} Bxd3 {[%emt 0:03:07]} 14. Qxd3 {[%emt 0:01:01]} a5 {[%emt 0:04:20]} 15. c3 {[%emt 0:05:07]} g6 {[%emt 0:08:20]} 16. Ng5 {[%emt 0:11:23]} b5 {[%emt 0:11:43]} 17. Ng3 $11 {[%emt 0:21:27]} Bxg5 {[%emt 0:10:57]} 18. fxg5 {[%emt 0:00:52]} Qe7 {[%emt 0:03:02]} 19. Nxf5 {[%emt 0:03:01]} exf5 {[%emt 0:01:31]} 20. a4 {[%emt 0:02:02]} axb4 {[%emt 0:00:56]} 21. axb5 {[%emt 0:01:23]} Rxa1 {[%emt 0:00:08]} 22. Rxa1 {[%emt 0:00:04]} bxc3 {[%emt 0:04:09]} 23. Qxc3 {[%emt 0:03:35]} O-O {[%emt 0:02:59]} 24. bxc6 {[%emt 0:01:11]} Rc8 {[%emt 0:00:16]} 25. Ra8 {[%emt 0:01:13]} Qc7 {[%emt 0:03:06]} 26. Qc5 {[%emt 0:00:44]} Nxc6 {[%emt 0:01:05]} 27. Rxc8+ {[%emt 0:00:18]} Qxc8 {[%emt 0:00:03]} 28. Qxd5 {[%emt 0:00:15]} Nb4 {[%emt 0:01:28]} 29. Qb5 {[%emt 0:02:29]} Qc1+ {[%emt 0:01:39]} 30. Qf1 {[%emt 0:00:05]} Qxg5 {[%emt 0:00:59]} 31. Qd1 {[%emt 0:01:38]} Nd5 {[%emt 0:01:34]} 32. h4 {[%emt 0:02:58]} Qg4 {[%emt 0:03:10]} 33. Qf3 {[%emt 0:04:05]} Qe4 {[%emt 0:06:54]} 34. Qd1 {[%emt 0:01:36]} Kf8 {[%emt 0:01:21]} 35. Qb3 {[%emt 0:00:32]} Nf4 {[%emt 0:00:57]} 36. Qf3 {[%emt 0:00:20]} Qxf3 {[%emt 0:00:52]} 37. gxf3 {[%emt 0:00:02]} Ke7 {[%emt 0:00:17]} 38. Be3 {[%emt 0:00:45]} Nd5 {[%emt 0:00:42]} 39. Kf2 {[%emt 0:00:23]} Ke6 {[%emt 0:00:45]} 40. Ke2 {[%emt 0:00:33]} Nb4 {[%emt 0:02:05]} 41. Bd2 {[%emt 0:31:38]} Nc6 {[%emt 0:30:30]} 42. Kd3 Kd5 {[%emt 0:00:13]} 43. Be3 {[%emt 0:01:16]} Nd8 {[%emt 0:01:17]} 44. Bg1 {[%emt 0:00:00]} Ne6 {[%emt 0:00:00]} 45. Be3 {[%emt 0:00:00]} f4 {[%emt 0:00:00]} 46. Bg1 {[%emt 0:00:00]} g5 {[%emt 0:00:00]} 47. hxg5 {[%emt 0:00:00]} Nxg5 {[%emt 0:00:00]} 48. Bh2 {[%emt 0:00:00]} Ne6 {[%emt 0:00:00]} 49. Bg1 {[%emt 0:00:00]} h4 {[%emt 0:00:00]} 50. Kc3 {[%emt 0:00:00]} h3 {[%emt 0:00:00]} 51. Bh2 {[%emt 0:00:00]} Nxd4 {[%emt 0:00:00]} 0-1

[Event "SVK ECo-C Extraliga 2018-19"]
[Site "Slovakia"]
[Date "2019.03.09"]
[Round "7.3"]
[White "Jurcik, Marian"]
[Black "Mihok, Oliver"]
[Result "1/2-1/2"]
[ECO "B40"]
[WhiteElo "2462"]
[BlackElo "2540"]
[Annotator "RC"]
[PlyCount "49"]
[EventDate "2018.11.10"]
[EventType "team-tourn"]
[EventCountry "SVK"]
[SourceTitle "playchess.com"]
[Source "ChessBase"]
[SourceQuality "1"]
[WhiteTeam "Zilina"]
[BlackTeam "Podhajska"]
[TimeControl "40/5400+30:1800+30"]

1. e4 {[%emt 0:00:00]} c5 {[%emt 0:00:00]} 2. Nf3 {[%emt 0:00:00]} e6 {[%emt 0:00:00]} 3. b3 {[%emt 0:02:18]} b6 {[%emt 0:00:04]} 4. Bb2 {[%emt 0:01:15]} Bb7 {[%emt 0:00:08]} 5. Qe2 {[%emt 0:01:43]} Nc6 {[%emt 0:03:29]} 6. g3 {[%emt 0:00:35]} Nf6 {[%emt 0:02:08]} 7. e5 {[%emt 0:03:02]} Ng4 {[%emt 0:04:36]} 8. Bg2 {[%emt 0:01:12]} Nd4 {[%emt 0:05:29]} 9. Nxd4 {[%emt 0:11:41]} Bxg2 {[%emt 0:00:17]} 10. Rg1 {[%emt 0:00:11]} Bb7 {[%emt 0:09:56]} 11. Nxe6 {[%emt 0:02:45]} dxe6 {[%emt 0:04:47]} 12. Qxg4 {[%emt 0:00:04]} Qd5 {[%emt 0:01:17]} 13. Na3 {[%emt 0:07:25]} h5 {[%emt 0:16:23]} 14. Qe2 {[%emt 0:03:19]} Qf3 {[%emt 0:01:28]} 15. Nb5 {[%emt 0:08:59]} Kd7 {[%emt 0:05:07]} 16. d4 {[%emt 0:05:43]} a6 {[%emt 0:06:00]} 17. Nd6 {[%emt 0:01:22]} Bxd6 {[%emt 0:01:10]} 18. exd6 {[%emt 0:00:18]} f6 {[%emt 0:02:54]} 19. dxc5 {[%emt 0:02:58]} bxc5 {[%emt 0:01:57]} 20. Rd1 {[%emt 0:02:19]} Rac8 {[%emt 0:06:26]} 21. Qxf3 {[%emt 0:15:53]} Bxf3 {[%emt 0:00:09]} 22. Rd3 {[%emt 0:00:06]} Be4 {[%emt 0:03:29]} 23. Rc3 {[%emt 0:00:23]} Bd5 {[%emt 0:03:30]} 24. Ke2 {[%emt 0:01:47]} c4 {[%emt 0:02:21]} 25. Rd1 {[%emt 0:03:26]} 1/2-1/2

[Event "SVK ECo-C Extraliga 2018-19"]
[Site "Slovakia"]
[Date "2019.03.09"]
[Round "7.3"]
[White "Rojicek, Vojtech"]
[Black "Cibickova, Zuzana"]
[Result "1-0"]
[ECO "A06"]
[WhiteElo "2389"]
[BlackElo "2243"]
[Annotator "NA"]
[PlyCount "57"]
[EventDate "2018.11.10"]
[EventType "team-tourn"]
[EventCountry "SVK"]
[SourceTitle "playchess.com"]
[Source "ChessBase"]
[SourceQuality "1"]
[WhiteTeam "Liptovska"]
[BlackTeam "Komarno"]
[TimeControl "40/5400+30:1800+30"]

1. Nf3 {[%emt 0:10:12]} d5 {[%emt 0:00:00]} 2. e3 {[%emt 0:01:32]} Nf6 {[%emt 0:02:00]} 3. c4 {[%emt 0:00:25]} c6 {[%emt 0:01:30]} 4. Nc3 {[%emt 0:00:20]} e6 {[%emt 0:01:42]} 5. Qc2 {[%emt 0:00:27]} Nbd7 {[%emt 0:01:08]} 6. b3 {[%emt 0:00:07]} Bd6 {[%emt 0:01:44]} 7. Bb2 {[%emt 0:02:19]} Qe7 {[%emt 0:00:15]} 8. Be2 {[%emt 0:05:14]} O-O {[%emt 0:00:54]} 9. g4 {[%emt 0:03:51]} Rd8 {[%emt 0:14:57]} 10. g5 {[%emt 0:04:29]} Ne8 {[%emt 0:00:23]} 11. h4 {[%emt 0:00:33]} dxc4 {[%emt 0:04:17]} 12. Bxc4 {[%emt 0:04:08]} ({Don't do} 12. bxc4 $6 f5 $14) 12... Nf8 $18 {[%emt 0:08:33]} 13. Rg1 {[%emt 0:18:25]} b5 {[%emt 0:10:35]} 14. Be2 {[%emt 0:03:26]} e5 {[%emt 0:26:20]} 15. Rc1 {[%emt 0:09:25]} a6 {[%emt 0:12:47]} 16. Ne4 {[%emt 0:01:26]} Bf5 {[%emt 0:00:05]} 17. Nf6+ {[%emt 0:02:38]} Nxf6 {[%emt 0:00:45]} 18. Qxf5 {[%emt 0:00:50]} N6d7 {[%emt 0:00:29]} 19. Rxc6 {[%emt 0:02:44]} Bb4 {[%emt 0:07:58]} 20. Rg4 {[%emt 0:05:00]} Rdc8 {[%emt 0:02:44]} 21. Rxc8 {[%emt 0:05:56]} Rxc8 {[%emt 0:00:01]} 22. Nxe5 {[%emt 0:00:09]} g6 {[%emt 0:00:52]} 23. Qxf7+ {[%emt 0:00:34]} Qxf7 {[%emt 0:00:14]} 24. Nxf7 {[%emt 0:00:03]} Kxf7 {[%emt 0:00:44]} 25. Rxb4 {[%emt 0:00:15]} Rc2 {[%emt 0:00:05]} 26. Bc3 {[%emt 0:00:45]} Rxa2 {[%emt 0:00:29]} 27. Bd3 {[%emt 0:00:16]} Nc5 {[%emt 0:01:19]} 28. Bb1 {[%emt 0:00:03]} Ra3 {[%emt 0:00:09]} 29. Bb2 {[%emt 0:00:02]} 1-0